fUSD/lending_fUSD_20260406
["ID","MTS","AMOUNT","RATE_DAILY","PERIOD"]
[419866741,1775449841214,-500.0,0.00012552,2]
[419866742,1775449841224,-151.0,0.00012552,2]
[419866743,1775449841234,-174.61919141,0.00012552,2]
[419866744,1775449841243,-200.0,0.00012597,2]
[419866745,1775449841253,-695.39793187,0.00012599,2]
[419866746,1775449841262,-500.0,0.00012599,2]
[419866747,1775449841272,-200.0,0.00012599,2]
[419866748,1775449841281,-1377.42282659,0.00012599,2]
[419866749,1775449841290,-500.0,0.00012599,2]
[419866750,1775449841299,-500.0,0.00012599,2]
[419866751,1775449841309,-500.0,0.00012599,2]
[419866752,1775449841318,-500.0,0.00012599,2]
[419866753,1775449841328,-500.0,0.00012599,2]
[419866754,1775449841337,-500.0,0.00012599,2]
[419866755,1775449841347,-500.0,0.00012599,2]
[419866756,1775449841356,-500.0,0.00012599,2]
[419866757,1775449841366,-500.0,0.00012599,2]
[419866758,1775449841376,-500.0,0.00012599,2]
[419866759,1775449841385,-500.0,0.00012599,2]
[419866760,1775449841395,-743.50770149,0.00012599,2]
[419866761,1775449841404,-187.4668328,0.00012606,2]
[419866762,1775449841414,-1015.619,0.00012606,2]
[419866763,1775449841424,-9389.4964,0.00012607,2]
[419866764,1775449841434,-1000.0,0.00012607,2]
[419866765,1775449841444,-12126.60327407,0.00012607,2]
[419866766,1775449841456,-2075.70576896,0.00012607,2]
[419866767,1775449841472,-1810.91461116,0.00012607,2]
[419866772,1775449845484,-150.0,0.00012586,2]
[419866773,1775449845494,-267.591609,0.00012587,2]
[419866774,1775449845503,-29455.59428836,0.00012607,2]
[419866775,1775449845516,-480087.48951937,0.00012607,2]
[419866782,1775449845594,-405893.56973686,0.00012607,2]
[419866790,1775449845763,-1849.46585997,0.00012607,2]
[419866797,1775449845821,-13069.63209362,0.00012607,2]
[419866829,1775449846098,-481.3395008,0.00012607,2]
[419866832,1775449846111,-505.0,0.00012607,2]
[419866837,1775449846127,-568.01877109,0.00012607,2]
[419866841,1775449846156,-101615.29870157,0.00012607,2]
[419866843,1775449846168,-1424.4811957,0.00012607,2]
[419866848,1775449846213,-6560.69590202,0.00012607,2]
[419866919,1775451031883,-1200.0,0.00011506,2]
[419866920,1775451031893,-319.0,0.00011506,2]
[419866921,1775451031903,-250.0,0.00011506,2]
[419866922,1775451031913,-476.88125224,0.00011507,2]
[419866923,1775451031989,-848.68874776,0.00011507,2]
[419866924,1775451032000,-8018.18182242,0.00011507,2]
[419866925,1775451032012,-530.12669042,0.00011507,2]
[419866926,1775451032024,-494.97495455,0.00011507,2]
[419866927,1775451032035,-131.42911807,0.00011507,2]
[419866928,1775451032045,-121.37893136,0.00012173,2]
[419866929,1775451032064,-228.62106864,0.00012173,2]
[419866930,1775451032074,-150.0,0.00012346,2]
[419866931,1775451032083,-607.29637376,0.00012346,2]
[419866932,1775451032099,-661.27450817,0.00012346,2]
[419866933,1775451032111,-3992.15954963,0.00012346,2]
[419866934,1775451032122,-351.95748645,0.00012346,2]
[419866945,1775451037968,-3977.17419144,0.00012346,2]
[419866946,1775451038282,-526.30878859,0.00012346,2]
[419866955,1775451040763,-688.8580236,0.00012346,2]
[419866956,1775451040817,-644.20590704,0.00012346,2]
[419866961,1775451043169,-4579.92757132,0.00012346,2]
[419866962,1775451043180,-578.20924308,0.00012362,2]
[419866963,1775451043190,-500.0,0.00012362,2]
[419866964,1775451043199,-174.61919141,0.00012362,2]
[419866965,1775451043209,-285.9361239,0.00012362,2]
[419866966,1775451043218,-150.0,0.00012405,2]
[419866967,1775451043228,-262.3808947,0.00012405,2]
[419866968,1775451043238,-812.495,0.00012406,2]
[419866969,1775451043248,-5491.6129,0.00012407,2]
[419866970,1775451043258,-1641.90671176,0.00012407,2]
[419866971,1775451043268,-500.0,0.00012417,2]
[419866972,1775451043279,-500.0,0.00012472,2]
[419866973,1775451043289,-500.0,0.00012499,2]
[419866974,1775451043299,-1377.42282659,0.00012499,2]
[419866975,1775451043309,-695.39793187,0.00012499,2]
[419866976,1775451043320,-200.0,0.00012499,2]
[419866977,1775451043329,-500.0,0.00012499,2]
[419866978,1775451043340,-500.0,0.00012499,2]
[419866979,1775451043350,-500.0,0.00012499,2]
[419866980,1775451043360,-500.0,0.00012499,2]
[419866981,1775451043371,-500.0,0.00012499,2]
[419866982,1775451043381,-500.0,0.00012499,2]
[419866983,1775451043391,-743.50770149,0.00012499,2]
[419866984,1775451043401,-500.0,0.00012499,2]
[419866985,1775451043424,-500.0,0.00012499,2]
[419866986,1775451043436,-500.0,0.00012499,2]
[419866987,1775451043446,-500.0,0.00012499,2]
[419866989,1775451043456,-500.0,0.00012499,2]
[419866990,1775451043467,-151.0,0.00012504,2]
[419866991,1775451043477,-500.0,0.00012506,2]
[419866992,1775451043488,-1158.0,0.00012506,2]
[419866993,1775451043499,-1158.0,0.00012506,2]
[419866994,1775451043509,-1158.0,0.00012506,2]
[419866995,1775451043519,-1158.0,0.00012506,2]
[419866996,1775451043529,-1158.0,0.00012506,2]
[419866997,1775451043539,-1158.0,0.00012506,2]
[419866998,1775451043549,-1158.0,0.00012506,2]
[419866999,1775451043560,-1158.0,0.00012506,2]
[419867000,1775451043570,-1158.0,0.00012506,2]
[419867001,1775451043580,-1158.0,0.00012506,2]
[419867002,1775451043590,-1158.0,0.00012506,2]
[419867003,1775451043601,-1158.0,0.00012506,2]
[419867004,1775451043613,-1158.0,0.00012506,2]
[419867005,1775451043624,-1158.0,0.00012506,2]
[419867006,1775451043634,-1158.0,0.00012506,2]
[419867007,1775451043645,-1158.0,0.00012506,2]
[419867009,1775451043655,-1158.0,0.00012506,2]
[419867010,1775451043665,-1158.0,0.00012506,2]
[419867011,1775451043675,-1158.0,0.00012506,2]
[419867012,1775451043685,-1158.0,0.00012506,2]
[419867013,1775451043695,-1158.0,0.00012506,2]
[419867014,1775451043705,-1158.0,0.00012506,2]
[419867016,1775451043715,-1158.0,0.00012506,2]
[419867017,1775451043725,-1179.89042352,0.00012506,2]
[419867018,1775451043735,-1000.0,0.00012507,2]
[419867019,1775451043745,-472834.28124415,0.00012507,2]
[419867020,1775451043781,-199770.00317896,0.00012507,2]
[419867021,1775451043813,-900.05641542,0.00012507,2]
[419867022,1775451043831,-485185.91141399,0.00012507,2]
[419867023,1775451043843,-2841.95047146,0.00012507,2]
[419867042,1775451046964,-11018.03345997,0.00012507,2]
[419867052,1775451047050,-11699.04994768,0.00012507,2]
[419867055,1775451047066,-1108.90373749,0.00012507,2]
[419867072,1775451562743,170.0,6.375e-05,2]
[419867073,1775451562994,156.0,6.375e-05,2]
[419867074,1775451563249,156.0,6.375e-05,2]
[419867075,1775451563508,156.0,6.375e-05,2]
[419867076,1775451563766,156.0,6.375e-05,2]
[419867077,1775451564059,156.0,6.375e-05,2]
[419867078,1775451564314,156.0,6.375e-05,2]
[419867079,1775451564569,156.0,6.375e-05,2]
[419867080,1775451564825,156.0,6.375e-05,2]
[419867081,1775451565095,156.0,6.375e-05,2]
[419867082,1775451565354,156.0,6.375e-05,2]
[419867083,1775451565642,156.0,6.375e-05,2]
[419867084,1775451565898,156.0,6.375e-05,2]
[419867085,1775451566155,156.0,6.375e-05,2]
[419867086,1775451566415,156.0,6.375e-05,2]
[419867087,1775451566719,156.0,6.375e-05,2]
[419867088,1775451566999,156.0,6.375e-05,2]
[419867089,1775451567257,156.0,6.375e-05,2]
[419867090,1775451567515,156.0,6.375e-05,2]
[419867091,1775451568349,156.0,6.375e-05,2]
[419867092,1775451569683,156.0,6.375e-05,2]
[419867093,1775451569741,156.0,6.375e-05,2]
[419867094,1775451569794,156.0,6.375e-05,2]
[419867095,1775451569989,167.0,6.375e-05,2]
[419867096,1775451570054,156.0,6.375e-05,2]
[419867097,1775451570204,156.0,6.375e-05,2]
[419867098,1775451570454,156.0,6.375e-05,2]
[419867099,1775451570704,156.0,6.375e-05,2]
[419867100,1775451570976,156.0,6.375e-05,2]
[419867101,1775451571540,156.0,6.375e-05,2]
[419867102,1775451571588,156.0,6.375e-05,2]
[419867103,1775451571751,156.0,6.375e-05,2]
[419867104,1775451572008,156.0,6.375e-05,2]
[419867105,1775451572270,156.0,6.375e-05,2]
[419867106,1775451572524,156.0,6.375e-05,2]
[419867107,1775451572785,156.0,6.375e-05,2]
[419867108,1775451573033,156.0,6.375e-05,2]
[419867109,1775451573277,156.0,6.375e-05,2]
[419867110,1775451573526,156.0,6.375e-05,2]
[419867111,1775451573772,156.0,6.375e-05,2]
[419867112,1775451574056,156.0,6.375e-05,2]
[419867113,1775451574302,156.0,6.375e-05,2]
[419867118,1775451939853,-485.66943802,0.0001,2]
[419867119,1775451939881,-294.0,0.0001,2]
[419867120,1775451941575,323.77962534,0.0001,2]
[419867121,1775451941673,323.77962534,0.0001,2]
[419867122,1775451941706,151.0,0.0001,2]
[419867123,1775451942768,292.58741912,0.0001,2]
[419867124,1775451944545,151.0,0.0001,2]
[419867125,1775451945480,172.77962535,0.0001,2]
[419867136,1775452232250,-860.71052593,0.000107,2]
[419867137,1775452232270,-500.0,0.000107,2]
[419867157,1775452238197,-20153.87727373,0.000107,2]
[419867158,1775452238210,-496.39233885,0.000107,2]
[419867159,1775452238240,-10045.93476403,0.000107,2]
[419867160,1775452238251,-200.0,0.00010959,2]
[419867161,1775452238260,-5000.0,0.00010979,2]
[419867162,1775452238270,-708.18,0.00011242,2]
[419867163,1775452238279,-300.0,0.00011267,2]
[419867164,1775452238289,-1200.0,0.00011267,2]
[419867165,1775452238299,-5000.0,0.00011268,2]
[419867166,1775452238308,-297.34337029,0.00011268,2]
[419867167,1775452238317,-2000.0,0.00011385,2]
[419867168,1775452238327,-500.0,0.00011418,2]
[419867169,1775452238337,-200.0,0.00011578,2]
[419867170,1775452238347,-169.12,0.00011996,2]
[419867171,1775452238357,-333.32071224,0.00012026,2]
[419867172,1775452238366,-5000.0,0.00012055,2]
[419867173,1775452238375,-250.0,0.00012055,2]
[419867174,1775452238385,-182.78240974,0.00012136,2]
[419867175,1775452238395,-150.0,0.00012144,2]
[419867176,1775452238404,-500.0,0.00012145,2]
[419867177,1775452238414,-957.20410536,0.00012145,2]
[419867178,1775452238423,-511.8929801,0.00012145,2]
[419867179,1775452238433,-229.54858959,0.00012145,2]
[419867180,1775452238443,-334.12869831,0.00012145,2]
[419867181,1775452238452,-500.0,0.00012145,2]
[419867182,1775452238462,-500.0,0.00012145,2]
[419867183,1775452238471,-500.0,0.00012145,2]
[419867184,1775452238481,-430.42898431,0.00012145,2]
[419867185,1775452238491,-500.0,0.00012145,2]
[419867186,1775452238500,-500.0,0.00012145,2]
[419867187,1775452238510,-500.0,0.00012145,2]
[419867188,1775452238519,-500.0,0.00012145,2]
[419867189,1775452238528,-500.0,0.00012145,2]
[419867190,1775452238539,-500.0,0.00012145,2]
[419867191,1775452238548,-500.0,0.00012145,2]
[419867192,1775452238558,-500.0,0.00012145,2]
[419867193,1775452238567,-500.0,0.00012145,2]
[419867194,1775452238577,-500.0,0.00012145,2]
[419867195,1775452238587,-500.0,0.00012145,2]
[419867196,1775452238596,-500.0,0.00012145,2]
[419867197,1775452238605,-500.0,0.00012145,2]
[419867198,1775452238614,-500.0,0.00012145,2]
[419867199,1775452238624,-500.0,0.00012145,2]
[419867200,1775452238634,-602.99596931,0.00012145,2]
[419867201,1775452238643,-500.0,0.00012145,2]
[419867202,1775452238653,-500.0,0.00012145,2]
[419867203,1775452238662,-500.0,0.00012145,2]
[419867204,1775452238672,-500.0,0.00012145,2]
[419867205,1775452238682,-500.0,0.00012145,2]
[419867206,1775452238692,-500.0,0.00012145,2]
[419867207,1775452238702,-500.0,0.00012145,2]
[419867208,1775452238712,-500.0,0.00012145,2]
[419867209,1775452238722,-500.0,0.00012145,2]
[419867210,1775452238732,-500.0,0.00012145,2]
[419867211,1775452238742,-500.0,0.00012145,2]
[419867212,1775452238752,-500.0,0.00012145,2]
[419867213,1775452238761,-500.0,0.00012145,2]
[419867214,1775452238771,-500.0,0.00012145,2]
[419867215,1775452238781,-500.0,0.00012145,2]
[419867216,1775452239203,-250.33288548,0.00012145,2]
[419867217,1775452239213,-500.0,0.00012145,2]
[419867218,1775452239222,-500.0,0.00012145,2]
[419867219,1775452239232,-500.0,0.00012145,2]
[419867220,1775452239241,-500.0,0.00012145,2]
[419867221,1775452239250,-500.0,0.00012145,2]
[419867222,1775452239259,-500.0,0.00012145,2]
[419867223,1775452239269,-500.0,0.00012145,2]
[419867224,1775452239278,-500.0,0.00012145,2]
[419867225,1775452239287,-500.0,0.00012145,2]
[419867226,1775452239297,-500.0,0.00012145,2]
[419867227,1775452239306,-500.0,0.00012145,2]
[419867228,1775452239315,-500.0,0.00012145,2]
[419867229,1775452239326,-500.0,0.00012145,2]
[419867230,1775452239336,-500.0,0.00012145,2]
[419867231,1775452239345,-152202.98321466,0.00012146,2]
[419867232,1775452239358,-1347797.01678534,0.00012146,2]
[419867233,1775452239367,-10000.01,0.00012146,2]
[419867234,1775452239377,-375.51397884,0.00012173,2]
[419867235,1775452239387,-500.32253722,0.00012173,2]
[419867236,1775452239396,-500.26271237,0.00012173,2]
[419867237,1775452239406,-500.0,0.00012173,2]
[419867238,1775452239415,-500.16623209,0.00012173,2]
[419867239,1775452239425,-461.10773956,0.00012173,2]
[419867240,1775452239435,-167.64405758,0.00012173,2]
[419867241,1775452239444,-501.99462848,0.00012173,2]
[419867242,1775452239453,-245.86073687,0.00012173,2]
[419867243,1775452239463,-500.0,0.00012173,2]
[419867244,1775452239472,-500.5883938,0.00012173,2]
[419867245,1775452239481,-500.0,0.00012173,2]
[419867246,1775452239491,-243.4671222,0.00012173,2]
[419867247,1775452239500,-501.53967099,0.00012173,2]
[419867248,1775452239509,-500.0,0.00012173,2]
[419867249,1775452239519,-160.39801811,0.00012173,2]
[419867250,1775452239529,-7295.85063283,0.00012236,2]
[419867251,1775452239538,-578.20924308,0.00012238,2]
[419867252,1775452239548,-500.0,0.00012238,2]
[419867253,1775452239558,-174.61919141,0.00012239,2]
[419867254,1775452239567,-7805.45013274,0.00012245,2]
[419867255,1775452239577,-649.996,0.00012246,2]
[419867256,1775452239586,-1395.65,0.00012274,2]
[419867257,1775452239595,-500.0,0.00012293,2]
[419867258,1775452239604,-500.0,0.000123,2]
[419867259,1775452239614,-695.39793187,0.000123,2]
[419867260,1775452239623,-200.0,0.000123,2]
[419867261,1775452239632,-1377.42282659,0.000123,2]
[419867262,1775452239642,-500.0,0.000123,2]
[419867263,1775452239654,-500.0,0.000123,2]
[419867264,1775452239664,-500.0,0.000123,2]
[419867265,1775452239674,-500.0,0.000123,2]
[419867266,1775452239684,-160.09011073,0.000123,2]
[419867267,1775452239693,-743.50770149,0.000123,2]
[419867268,1775452239703,-207923.20810607,0.00012305,2]
[419867269,1775452239713,-151.0,0.00012329,2]
[419867270,1775452239722,-151.000003,0.00012329,2]
[419867271,1775452239732,-500.0,0.00012348,2]
[419867272,1775452239742,-1680.0,0.00012394,2]
[419867273,1775452239752,-500.0,0.00012403,2]
[419867274,1775452239763,-1000.0,0.00012407,2]
[419867275,1775452239773,-377.33854271,0.00012419,2]
[419867276,1775452239782,-350.0,0.00012424,2]
[419867277,1775452239792,-500.0,0.00012458,2]
[419867278,1775452239801,-55430.0,0.00012493,2]
[419867279,1775452239811,-1644.49,0.000125,2]
[419867280,1775452239820,-151.0,0.00012504,2]
[419867281,1775452239830,-151.0,0.00012504,2]
[419867282,1775452239840,-500.0,0.00012506,2]
[419867283,1775452239850,-380.85117805,0.00012506,2]
[419867284,1775452239860,-500.0,0.00012506,2]
[419867285,1775452239870,-500.0,0.00012506,2]
[419867286,1775452239881,-500.0,0.00012506,2]
[419867287,1775452239891,-479.84336693,0.00012506,2]
[419867288,1775452239900,-274.41560244,0.00012506,2]
[419867289,1775452239910,-500.0,0.00012506,2]
[419867290,1775452239919,-500.0,0.00012506,2]
[419867291,1775452239928,-188.82593105,0.00012506,2]
[419867292,1775452239938,-500.0,0.00012506,2]
[419867293,1775452239947,-500.0,0.00012506,2]
[419867294,1775452239958,-500.0,0.00012506,2]
[419867295,1775452239968,-500.0,0.00012506,2]
[419867296,1775452239978,-500.0,0.00012506,2]
[419867297,1775452239987,-396.81336029,0.00012506,2]
[419867298,1775452239996,-343.32367449,0.00012506,2]
[419867299,1775452240006,-156.0,0.00012507,3]
[419867300,1775452240017,-216.0,0.00012507,3]
[419867301,1775452240026,-4744.6192891,0.00012507,2]
[419867302,1775452240036,-200.0,0.00012507,2]
[419867303,1775452240046,-314794.3033968,0.00012507,2]
[419867304,1775452240055,-151.0,0.00012507,2]
[419867305,1775452240066,-151.0,0.00012507,2]
[419867306,1775452240075,-151.0,0.00012507,2]
[419867307,1775452240085,-151.0,0.00012507,2]
[419867308,1775452240094,-151.0,0.00012507,2]
[419867309,1775452240104,-151.0,0.00012507,2]
[419867310,1775452240113,-200.0,0.00012507,2]
[419867311,1775452240123,-500.0,0.00012513,2]
[419867312,1775452240133,-2933.6,0.00012562,2]
[419867313,1775452240143,-2933.6,0.00012562,2]
[419867314,1775452240152,-2933.6,0.00012562,2]
[419867315,1775452240162,-500.0,0.00012568,2]
[419867316,1775452240172,-2000.0,0.0001257,2]
[419867317,1775452240182,-2000.0,0.0001257,2]
[419867318,1775452240192,-2000.0,0.0001257,2]
[419867319,1775452240201,-1000.0,0.000126,2]
[419867320,1775452240211,-499.89678685,0.000126,2]
[419867321,1775452240220,-151.0,0.00012603,2]
[419867322,1775452240231,-151.0,0.00012603,2]
[419867323,1775452240241,-151.0,0.00012603,2]
[419867324,1775452240250,-350.0,0.00012618,2]
[419867325,1775452240260,-500.0,0.00012623,2]
[419867326,1775452240270,-200.0,0.00012632,2]
[419867327,1775452240279,-200.0,0.00012632,2]
[419867328,1775452240289,-1616.0,0.00012638,5]
[419867329,1775452240299,-1596.0,0.00012638,5]
[419867330,1775452240309,-500.0,0.00012678,2]
[419867331,1775452240318,-2000.0,0.00012699,2]
[419867332,1775452240328,-2000.0,0.00012699,2]
[419867333,1775452240338,-2000.0,0.00012699,2]
[419867334,1775452240348,-1000.0,0.00012721,2]
[419867335,1775452240358,-500.49845553,0.00012721,2]
[419867336,1775452240368,-1039.93587582,0.00012721,2]
[419867337,1775452240378,-500.0,0.00012733,2]
[419867339,1775452240388,-1900.0,0.00012741,2]
[419867341,1775452240398,-3000.0,0.00012741,2]
[419867343,1775452240408,-200.0,0.00012758,2]
[419867344,1775452240418,-274.0,0.00012758,2]
[419867345,1775452240428,-296.871528,0.00012773,2]
[419867346,1775452240437,-1318.86118,0.00012773,2]
[419867347,1775452240447,-181.08010149,0.00012787,2]
[419867348,1775452240458,-500.0,0.00012788,2]
[419867349,1775452240468,-274.0,0.00012792,2]
[419867350,1775452240478,-230.04,0.00012807,2]
[419867351,1775452240488,-2000.0,0.00012809,2]
[419867352,1775452240498,-274.0,0.00012822,2]
[419867353,1775452240508,-274.0,0.00012831,2]
[419867354,1775452240518,-274.0,0.00012832,2]
[419867355,1775452240528,-274.0,0.00012836,2]
[419867356,1775452240538,-500.0,0.00012843,2]
[419867357,1775452240548,-200.0,0.00012848,2]
[419867358,1775452240558,-1428.38747117,0.00012848,2]
[419867359,1775452240568,-771.01748645,0.00012848,2]
[419867360,1775452240578,-2569.008232,0.00012849,2]
[419867361,1775452240588,-230.300337,0.00012878,2]
[419867362,1775452240598,-274.0,0.00012916,2]
[419867363,1775452240608,-274.0,0.00012917,2]
[419867364,1775452240617,-274.0,0.00012987,2]
[419867365,1775452240627,-274.0,0.00012998,2]
[419867366,1775452240637,-250.0,0.00013,2]
[419867367,1775452240647,-1000.0,0.00013,2]
[419867368,1775452240656,-313.0,0.00013,2]
[419867369,1775452240666,-306.0,0.00013,2]
[419867370,1775452240676,-274.0,0.00013007,2]
[419867371,1775452240687,-274.0,0.0001301,2]
[419867372,1775452240696,-350.0,0.00013024,2]
[419867373,1775452240706,-274.0,0.00013033,2]
[419867374,1775452240716,-160.23,0.00013037,2]
[419867375,1775452240726,-274.0,0.00013061,2]
[419867376,1775452240736,-274.0,0.00013083,2]
[419867377,1775452240746,-1219.716,0.00013093,2]
[419867378,1775452240755,-6021.0,0.00013093,2]
[419867379,1775452240765,-2471.0,0.00013093,2]
[419867380,1775452240775,-507.0,0.000131,2]
[419867381,1775452240785,-161.15,0.00013106,2]
[419867382,1775452240795,-350.0,0.00013111,2]
[419867383,1775452240805,-1732.94,0.00013141,2]
[419867384,1775452240815,-350.0,0.00013144,2]
[419867385,1775452240824,-240.0,0.00013151,2]
[419867386,1775452240834,-274.0,0.0001318,2]
[419867387,1775452240844,-350.0,0.00013196,2]
[419867388,1775452240855,-274.0,0.00013209,2]
[419867390,1775452240865,-255.0,0.00013225,2]
[419867392,1775452240875,-274.0,0.00013235,2]
[419867394,1775452240885,-274.0,0.00013258,2]
[419867396,1775452240895,-933.0,0.00013268,2]
[419867398,1775452240906,-1500.0,0.00013268,2]
[419867400,1775452240916,-274.0,0.00013278,2]
[419867402,1775452240927,-150.0,0.000133,2]
[419867404,1775452240937,-1600.0,0.00013326,2]
[419867406,1775452240947,-350.0,0.00013329,2]
[419867408,1775452240957,-1598.0,0.00013335,5]
[419867410,1775452240967,-187.78006525,0.00013335,2]
[419867412,1775452240977,-350.0,0.00013388,2]
[419867414,1775452240986,-1481.23780761,0.00013396,2]
[419867416,1775452240995,-200.0,0.00013396,2]
[419867418,1775452241006,-450.18883502,0.00013396,2]
[419867420,1775452241015,-1049.80043536,0.00013397,2]
[419867422,1775452241025,-151.0,0.00013423,2]
[419867424,1775452241035,-151.0,0.00013423,2]
[419867426,1775452241044,-151.0,0.00013423,2]
[419867428,1775452241054,-151.0,0.00013423,2]
[419867430,1775452241064,-3240.0,0.00013425,2]
[419867432,1775452241073,-1049.80043536,0.00013452,2]
[419867434,1775452241083,-153.647497,0.0001347,2]
[419867436,1775452241093,-1049.80043536,0.00013507,2]
[419867438,1775452241103,-151.0,0.00013513,2]
[419867440,1775452241112,-150.0,0.00013516,2]
[419867442,1775452241122,-150.085,0.00013516,2]
[419867444,1775452241131,-150.0,0.00013516,2]
[419867446,1775452241141,-1347.0,0.00013516,2]
[419867448,1775452241150,-3523.0,0.00013516,2]
[419867450,1775452241159,-1046.0,0.00013516,2]
[419867452,1775452241169,-1263.0,0.00013516,2]
[419867454,1775452241179,-2161.0,0.00013516,2]
[419867456,1775452241188,-153.544953,0.00013516,2]
[419867458,1775452241198,-151.0,0.00013516,2]
[419867460,1775452241207,-190.473571,0.00013516,2]
[419867462,1775452241217,-168.0,0.00013528,2]
[419867465,1775452241226,-350.0,0.00013561,2]
[419867467,1775452241236,-1049.80043536,0.00013562,2]
[419867469,1775452241246,-163.64,0.00013586,2]
[419867471,1775452241255,-10000.0,0.00013599,2]
[419867473,1775452241264,-440.99298811,0.00013599,2]
[419867475,1775452241274,-1049.80043536,0.00013616,2]
[419867476,1775452241284,-2351.0,0.00013633,2]
[419867478,1775452241294,-1049.80043536,0.00013644,2]
[419867480,1775452241303,-169.12,0.00013681,2]
[419867482,1775452241313,-350.0,0.00013685,2]
[419867483,1775452241322,-151.0,0.00013696,2]
[419867484,1775452241331,-151.0,0.00013696,2]
[419867485,1775452241340,-151.0,0.00013696,2]
[419867486,1775452241349,-151.0,0.00013696,2]
[419867487,1775452241359,-178.056,0.00013698,2]
[419867488,1775452241368,-500.0,0.00013699,2]
[419867489,1775452241378,-150.0,0.00013699,2]
[419867490,1775452241388,-252.05,0.00013699,2]
[419867492,1775452241398,-1049.80043536,0.00013699,2]
[419867493,1775452241407,-166.66,0.00013699,2]
[419867494,1775452241416,-151.0,0.00013699,2]
[419867495,1775452241427,-151.0,0.00013699,2]
[419867496,1775452241436,-151.0,0.00013699,2]
[419867497,1775452241446,-151.0,0.00013699,2]
[419867499,1775452241455,-191.501191,0.00013699,2]
[419867500,1775452241465,-151.0,0.00013699,2]
[419867501,1775452241475,-151.0,0.00013699,2]
[419867502,1775452241484,-151.0,0.00013699,2]
[419867503,1775452241493,-151.0,0.00013699,2]
[419867504,1775452241503,-151.0,0.00013699,2]
[419867505,1775452241512,-151.0,0.00013699,2]
[419867506,1775452241522,-151.0,0.00013699,2]
[419867507,1775452241533,-151.0,0.00013699,2]
[419867508,1775452241542,-151.0,0.00013699,2]
[419867509,1775452241552,-154.092398,0.00013699,2]
[419867510,1775452241562,-428.020659,0.00013699,2]
[419867511,1775452241572,-428.020659,0.00013699,2]
[419867512,1775452241582,-428.020659,0.00013699,2]
[419867513,1775452241591,-428.020659,0.00013699,2]
[419867514,1775452241601,-151.0,0.00013699,2]
[419867515,1775452241610,-151.0,0.00013699,2]
[419867516,1775452241620,-257.768999,0.00013699,2]
[419867517,1775452241629,-257.768999,0.00013699,2]
[419867518,1775452241639,-151.0,0.00013699,2]
[419867519,1775452241648,-257.768999,0.00013699,2]
[419867520,1775452241657,-151.0,0.00013699,2]
[419867521,1775452241666,-254.697422,0.00013699,2]
[419867522,1775452241676,-257.768999,0.00013699,2]
[419867523,1775452241685,-151.0,0.00013699,2]
[419867524,1775452241698,-151.0,0.00013699,2]
[419867525,1775452241708,-151.0,0.00013699,2]
[419867526,1775452241717,-208.170002,0.00013699,2]
[419867527,1775452241727,-208.170002,0.00013699,2]
[419867528,1775452241736,-208.170002,0.00013699,2]
[419867529,1775452241746,-208.170002,0.00013699,2]
[419867530,1775452241756,-151.0,0.00013699,2]
[419867531,1775452241766,-157.597666,0.00013699,2]
[419867532,1775452241776,-151.0,0.00013699,2]
[419867533,1775452241787,-151.0,0.00013699,2]